fUSD/lending_fUSD_20251206
["ID","MTS","AMOUNT","RATE_DAILY","PERIOD"]
[396557528,1765049451638,-500.0,0.00016712,2]
[396557529,1765049451647,-500.0,0.00016712,2]
[396557530,1765049451657,-500.0,0.00016712,2]
[396557531,1765049451667,-3304.31,0.00016712,2]
[396557532,1765049451676,-500.0,0.00016712,2]
[396557533,1765049451686,-500.0,0.00016712,2]
[396557534,1765049451695,-2096.55,0.00016712,2]
[396557535,1765049451705,-500.0,0.00016712,2]
[396557536,1765049451714,-500.0,0.00016712,2]
[396557537,1765049451724,-938.87,0.00016712,2]
[396557538,1765049451733,-500.0,0.00016712,2]
[396557539,1765049451742,-638.51,0.00016712,2]
[396557540,1765049451752,-500.0,0.00016712,2]
[396557541,1765049451761,-500.0,0.00016712,2]
[396557542,1765049451770,-500.0,0.00016712,2]
[396557543,1765049451779,-500.0,0.00016712,2]
[396557544,1765049451789,-324.5583201,0.00016712,2]
[396557545,1765049451798,-500.0,0.00016712,2]
[396557546,1765049451808,-500.0,0.00016712,2]
[396557547,1765049451817,-500.0,0.00016712,2]
[396557548,1765049451827,-500.0,0.00016712,2]
[396557549,1765049451836,-2088.59,0.00016712,2]
[396557550,1765049451846,-2178.91,0.00016712,2]
[396557551,1765049451855,-500.0,0.00016712,2]
[396557552,1765049451865,-500.0,0.00016712,2]
[396557553,1765049451874,-500.0,0.00016712,2]
[396557554,1765049451883,-500.0,0.00016712,2]
[396557555,1765049451892,-500.0,0.00016712,2]
[396557556,1765049451903,-506.86663739,0.00016712,2]
[396557557,1765049451913,-2346.06,0.00016712,2]
[396557558,1765049451923,-675.95,0.00016712,2]
[396557559,1765049451932,-500.0,0.00016712,2]
[396557560,1765049451943,-500.0,0.00016712,2]
[396557561,1765049451952,-500.0,0.00016712,2]
[396557562,1765049451961,-500.0,0.00016712,2]
[396557563,1765049451971,-500.0,0.00016712,2]
[396557564,1765049451981,-500.0,0.00016712,2]
[396557565,1765049451990,-500.0,0.00016712,2]
[396557566,1765049451999,-500.0,0.00016712,2]
[396557567,1765049452008,-500.0,0.00016712,2]
[396557568,1765049452018,-506.06052094,0.00016712,2]
[396557569,1765049452028,-500.0,0.00016712,2]
[396557570,1765049452037,-500.0,0.00016712,2]
[396557571,1765049452046,-500.0,0.00016712,2]
[396557572,1765049452055,-500.0,0.00016712,2]
[396557573,1765049452065,-500.0,0.00016712,2]
[396557574,1765049452075,-500.0,0.00016712,2]
[396557575,1765049452083,-748.57,0.00016712,2]
[396557576,1765049452096,-500.0,0.00016712,2]
[396557577,1765049452106,-500.0,0.00016712,2]
[396557578,1765049452115,-2174.04,0.00016712,2]
[396557579,1765049452124,-2460.87,0.00016712,2]
[396557580,1765049452134,-500.0,0.00016712,2]
[396557581,1765049452143,-151.0,0.00016712,2]
[396557582,1765049452152,-4255.66,0.00016712,2]
[396557583,1765049452161,-2182.12,0.00016712,2]
[396557584,1765049452170,-151.0,0.00016712,2]
[396557585,1765049452180,-500.0,0.00016712,2]
[396557586,1765049452189,-278.629314,0.00016712,2]
[396557587,1765049452199,-500.0,0.00016712,2]
[396557588,1765049452208,-151.0,0.00016712,2]
[396557589,1765049452217,-291.68736561,0.00016712,2]
[396557590,1765049452227,-151.0,0.00016712,2]
[396557591,1765049452236,-500.0,0.00016712,2]
[396557592,1765049452245,-500.0,0.00016712,2]
[396557593,1765049452258,-500.0,0.00016712,2]
[396557594,1765049452267,-1995.87,0.00016712,2]
[396557595,1765049452276,-500.0,0.00016712,2]
[396557596,1765049452286,-500.0,0.00016712,2]
[396557597,1765049452299,-500.0,0.00016712,2]
[396557598,1765049452308,-619.13,0.00016712,2]
[396557599,1765049452318,-500.0,0.00016712,2]
[396557600,1765049452327,-500.0,0.00016712,2]
[396557601,1765049452340,-500.0,0.00016712,2]
[396557602,1765049452350,-500.0,0.00016712,2]
[396557603,1765049452359,-500.0,0.00016712,2]
[396557604,1765049452368,-161.206842,0.00016712,2]
[396557605,1765049452378,-500.0,0.00016712,2]
[396557606,1765049452387,-2355.8,0.00016712,2]
[396557607,1765049452396,-500.0,0.00016712,2]
[396557608,1765049452406,-500.0,0.00016712,2]
[396557609,1765049452415,-500.0,0.00016712,2]
[396557610,1765049452425,-500.0,0.00016712,2]
[396557611,1765049452434,-500.0,0.00016712,2]
[396557612,1765049452444,-2180.18,0.00016712,2]
[396557613,1765049452453,-500.0,0.00016712,2]
[396557614,1765049452463,-500.0,0.00016712,2]
[396557615,1765049452472,-151.0,0.00016712,2]
[396557616,1765049452482,-500.0,0.00016712,2]
[396557617,1765049452492,-500.0,0.00016712,2]
[396557618,1765049452501,-151.0,0.00016712,2]
[396557619,1765049452510,-500.0,0.00016712,2]
[396557620,1765049452519,-151.0,0.00016712,2]
[396557621,1765049452528,-151.0,0.00016712,2]
[396557622,1765049452539,-1989.51,0.00016712,2]
[396557623,1765049452548,-500.0,0.00016712,2]
[396557624,1765049452557,-151.0,0.00016712,2]
[396557625,1765049452567,-614.11,0.00016712,2]
[396557626,1765049452576,-500.0,0.00016712,2]
[396557627,1765049452586,-500.0,0.00016712,2]
[396557628,1765049452595,-151.0,0.00016712,2]
[396557629,1765049452604,-500.0,0.00016712,2]
[396557630,1765049452614,-500.0,0.00016712,2]
[396557631,1765049452623,-500.0,0.00016712,2]
[396557632,1765049452633,-151.0,0.00016712,2]
[396557633,1765049452642,-151.0,0.00016712,2]
[396557634,1765049452651,-500.0,0.00016712,2]
[396557635,1765049452661,-151.0,0.00016712,2]
[396557636,1765049452670,-323.89421972,0.00016712,2]
[396557637,1765049452680,-151.0,0.00016712,2]
[396557638,1765049452689,-151.0,0.00016712,2]
[396557639,1765049452700,-500.0,0.00016712,2]
[396557640,1765049452712,-500.0,0.00016712,2]
[396557641,1765049452729,-151.0,0.00016712,2]
[396557642,1765049452739,-151.0,0.00016712,2]
[396557643,1765049452748,-557.7,0.00016712,2]
[396557644,1765049452758,-151.0,0.00016712,2]
[396557645,1765049452768,-151.0,0.00016712,2]
[396557646,1765049452777,-156.370868,0.00016712,2]
[396557647,1765049452787,-500.0,0.00016712,2]
[396557648,1765049452796,-500.0,0.00016712,2]
[396557649,1765049452806,-246.579587,0.00016712,2]
[396557650,1765049452815,-151.0,0.00016712,2]
[396557651,1765049452825,-500.0,0.00016712,2]
[396557652,1765049452836,-500.0,0.00016712,2]
[396557653,1765049452845,-500.0,0.00016712,2]
[396557654,1765049452854,-500.0,0.00016712,2]
[396557655,1765049452863,-500.0,0.00016712,2]
[396557656,1765049452873,-500.0,0.00016712,2]
[396557657,1765049452882,-500.0,0.00016712,2]
[396557658,1765049452892,-2456.2,0.00016712,2]
[396557659,1765049452902,-500.0,0.00016712,2]
[396557660,1765049452911,-500.0,0.00016712,2]
[396557661,1765049452920,-1800.53,0.00016712,2]
[396557662,1765049452930,-500.0,0.00016712,2]
[396557663,1765049452939,-500.0,0.00016712,2]
[396557664,1765049452948,-2082.26,0.00016712,2]
[396557665,1765049452958,-500.0,0.00016712,2]
[396557666,1765049452968,-598.0949576,0.00016712,2]
[396557667,1765049452978,-500.0,0.00016712,2]
[396557668,1765049452987,-500.0,0.00016712,2]
[396557669,1765049452997,-500.0,0.00016712,2]
[396557670,1765049453015,-500.0,0.00016712,2]
[396557671,1765049453024,-2294.48,0.00016712,2]
[396557672,1765049453033,-151.0,0.00016712,2]
[396557673,1765049453043,-151.0,0.00016712,2]
[396557674,1765049453053,-627.75,0.00016712,2]
[396557675,1765049453063,-151.0,0.00016712,2]
[396557676,1765049453081,-2353.71,0.00016712,2]
[396557677,1765049453093,-418.28134083,0.00016712,2]
[396557678,1765049453103,-630.41,0.00016712,2]
[396557679,1765049453113,-500.0,0.00016712,2]
[396557680,1765049453124,-500.0,0.00016712,2]
[396557681,1765049453134,-151.0,0.00016712,2]
[396557682,1765049453144,-500.0,0.00016712,2]
[396557683,1765049453271,-748.46,0.00016712,2]
[396557684,1765049453282,-994.62,0.00016712,2]
[396557685,1765049453292,-151.0,0.00016712,2]
[396557686,1765049453303,-151.0,0.00016712,2]
[396557687,1765049453313,-151.0,0.00016712,2]
[396557688,1765049453324,-151.0,0.00016712,2]
[396557689,1765049453334,-500.0,0.00016712,2]
[396557690,1765049453347,-500.0,0.00016712,2]
[396557691,1765049453356,-1077.86,0.00016712,2]
[396557692,1765049453366,-500.0,0.00016712,2]
[396557693,1765049453376,-500.0,0.00016712,2]
[396557694,1765049453385,-500.0,0.00016712,2]
[396557695,1765049453395,-151.0,0.00016712,2]
[396557696,1765049453405,-748.48,0.00016712,2]
[396557697,1765049453419,-500.0,0.00016712,2]
[396557698,1765049453430,-505.74,0.00016712,2]
[396557699,1765049453439,-2372.19,0.00016712,2]
[396557700,1765049453450,-500.0,0.00016712,2]
[396557701,1765049453460,-2642.85,0.00016712,2]
[396557702,1765049453471,-500.0,0.00016712,2]
[396557703,1765049453480,-500.0,0.00016712,2]
[396557704,1765049453490,-500.0,0.00016712,2]
[396557705,1765049453500,-500.0,0.00016712,2]
[396557706,1765049453510,-2051.54,0.00016712,2]
[396557707,1765049453522,-442.82343598,0.00016712,2]
[396557708,1765049453531,-151.0,0.00016712,2]
[396557709,1765049453541,-151.0,0.00016712,2]
[396557710,1765049453552,-151.0,0.00016712,2]
[396557711,1765049453562,-1092.25,0.00016712,2]
[396557712,1765049453572,-688.6,0.00016712,2]
[396557713,1765049453582,-500.0,0.00016712,2]
[396557714,1765049453593,-500.0,0.00016712,2]
[396557715,1765049453604,-151.0,0.00016712,2]
[396557716,1765049453616,-500.0,0.00016712,2]
[396557717,1765049453630,-500.0,0.00016712,2]
[396557718,1765049453639,-151.0,0.00016712,2]
[396557719,1765049453650,-500.0,0.00016712,2]
[396557720,1765049453660,-500.0,0.00016712,2]
[396557721,1765049453671,-504.25184054,0.00016712,2]
[396557722,1765049453681,-500.0,0.00016712,2]
[396557723,1765049453691,-151.0,0.00016712,2]
[396557724,1765049453702,-2050.48,0.00016712,2]
[396557725,1765049453713,-500.0,0.00016712,2]
[396557726,1765049453723,-500.0,0.00016712,2]
[396557727,1765049453733,-151.0,0.00016712,2]
[396557728,1765049453744,-4595.25,0.00016712,2]
[396557729,1765049453754,-151.0,0.00016712,2]
[396557730,1765049453764,-500.0,0.00016712,2]
[396557731,1765049453776,-1585.7,0.00016712,2]
[396557732,1765049453791,-500.0,0.00016712,2]
[396557733,1765049453801,-1104.0,0.00016712,2]
[396557734,1765049453812,-806.75,0.00016712,2]
[396557735,1765049453822,-500.0,0.00016712,2]
[396557736,1765049453832,-1883.1,0.00016712,2]
[396557737,1765049453841,-1206.62,0.00016712,2]
[396557738,1765049453852,-2381.02,0.00016712,2]
[396557739,1765049453862,-2251.92,0.00016712,2]
[396557740,1765049453872,-865.42,0.00016712,2]
[396557741,1765049453881,-557.1,0.00016712,2]
[396557742,1765049453891,-1564.25,0.00016712,2]
[396557743,1765049453904,-500.0,0.00016712,2]
[396557744,1765049453914,-7181.01,0.00016712,2]
[396557745,1765049453924,-2152.81,0.00016712,2]
[396557746,1765049453934,-3818.34,0.00016712,2]
[396557747,1765049453943,-2109.61,0.00016712,2]
[396557748,1765049453955,-1662.18,0.00016712,2]
[396557749,1765049453965,-500.0,0.00016712,2]
[396557750,1765049453975,-151.0,0.00016712,2]
[396557751,1765049453984,-507.46,0.00016712,2]
[396557752,1765049453994,-151.0,0.00016712,2]
[396557753,1765049454008,-524.54633434,0.00016712,2]
[396557754,1765049454018,-500.0,0.00016712,2]
[396557755,1765049454027,-500.0,0.00016712,2]
[396557756,1765049454036,-500.0,0.00016712,2]
[396557757,1765049454049,-2415.06,0.00016712,2]
[396557758,1765049454061,-181.57443052,0.00016712,2]
[396557759,1765049454095,-318.42556948,0.00016712,2]
[396557760,1765049454106,-1663.93,0.00016712,2]
[396557761,1765049454115,-151.0,0.00016712,2]
[396557762,1765049454126,-500.0,0.00016712,2]
[396557763,1765049454138,-151.0,0.00016712,2]
[396557764,1765049454148,-151.0,0.00016712,2]
[396557765,1765049454158,-2122.24,0.00016712,2]
[396557766,1765049454168,-1407.25,0.00016712,2]
[396557767,1765049454177,-151.0,0.00016712,2]
[396557768,1765049454187,-500.0,0.00016712,2]
[396557769,1765049454200,-500.0,0.00016712,2]
[396557770,1765049454211,-151.0,0.00016712,2]
[396557771,1765049454221,-151.0,0.00016712,2]
[396557772,1765049454230,-151.0,0.00016712,2]
[396557773,1765049454240,-500.0,0.00016712,2]
[396557774,1765049454250,-500.0,0.00016712,2]
[396557775,1765049454265,-232.795044,0.00016712,2]
[396557776,1765049454275,-500.0,0.00016712,2]
[396557777,1765049454284,-195.077165,0.00016712,2]
[396557778,1765049454295,-1000.0,0.00016712,2]
[396557779,1765049454306,-500.0,0.00016712,2]
[396557780,1765049454316,-500.0,0.00016712,2]
[396557781,1765049454326,-500.0,0.00016712,2]
[396557782,1765049454337,-151.0,0.00016712,2]
[396557783,1765049454348,-500.0,0.00016712,2]
[396557784,1765049454358,-500.0,0.00016712,2]
[396557785,1765049454370,-500.0,0.00016712,2]
[396557786,1765049454379,-1197.27,0.00016712,2]
[396557787,1765049454391,-151.0,0.00016712,2]
[396557788,1765049454400,-3344.99,0.00016712,2]
[396557789,1765049454410,-615.58,0.00016712,2]
[396557790,1765049454424,-500.0,0.00016712,2]
[396557791,1765049454433,-151.0,0.00016712,2]
[396557792,1765049454442,-500.0,0.00016712,2]
[396557793,1765049454452,-213.873319,0.00016712,2]
[396557794,1765049454461,-500.0,0.00016712,2]
[396557795,1765049454471,-500.0,0.00016712,2]
[396557796,1765049454480,-258.413098,0.00016712,2]
[396557797,1765049454490,-500.0,0.00016712,2]
[396557798,1765049454499,-6686.22,0.00016712,2]
[396557799,1765049454509,-873.16,0.00016712,2]
[396557800,1765049454519,-500.0,0.00016712,2]
[396557801,1765049454529,-500.0,0.00016712,2]
[396557802,1765049454538,-559.44,0.00016712,2]
[396557803,1765049454550,-627.38,0.00016712,2]
[396557804,1765049454559,-500.0,0.00016712,2]
[396557805,1765049454568,-2012.46,0.00016712,2]
[396557806,1765049454577,-500.0,0.00016712,2]
[396557807,1765049454586,-2068.39,0.00016712,2]
[396557808,1765049454595,-500.0,0.00016712,2]
[396557809,1765049454604,-500.0,0.00016712,2]
[396557810,1765049454613,-534.54,0.00016712,2]
[396557811,1765049454624,-504.66,0.00016712,2]
[396557812,1765049454634,-1778.29,0.00016712,2]
[396557813,1765049454643,-2092.72,0.00016712,2]
[396557814,1765049454652,-553.77,0.00016712,2]
[396557815,1765049454661,-500.0,0.00016712,2]
[396557816,1765049454670,-8483.59,0.00016712,2]
[396557817,1765049454679,-191.239562,0.00016712,2]
[396557818,1765049454688,-500.0,0.00016712,2]
[396557819,1765049454698,-151.0,0.00016712,2]
[396557820,1765049454707,-500.0,0.00016712,2]
[396557821,1765049454716,-2357.99,0.00016712,2]
[396557822,1765049454725,-2239.34,0.00016712,2]
[396557823,1765049454735,-986.07,0.00016712,2]
[396557824,1765049454744,-279.165607,0.00016712,2]
[396557825,1765049454753,-279.165607,0.00016712,2]
[396557826,1765049454763,-151.0,0.00016712,2]
[396557827,1765049454772,-500.93769086,0.00016712,2]
[396557828,1765049454781,-2207.14,0.00016712,2]
[396557829,1765049454791,-902.7708,0.00016712,2]
[396557830,1765049454800,-279.165607,0.00016712,2]
[396557831,1765049454810,-151.0,0.00016712,2]
[396557832,1765049454819,-2306.78,0.00016712,2]
[396557833,1765049454829,-902.7708,0.00016712,2]
[396557834,1765049454839,-294.492084,0.00016712,2]
[396557835,1765049454849,-557.24,0.00016712,2]
[396557836,1765049454859,-902.7708,0.00016712,2]
[396557837,1765049454868,-151.0,0.00016712,2]
[396557838,1765049454877,-151.0,0.00016712,2]
[396557839,1765049454887,-902.7708,0.00016712,2]
[396557840,1765049454896,-151.0,0.00016712,2]
[396557841,1765049454905,-279.165607,0.00016712,2]
[396557842,1765049454914,-151.0,0.00016712,2]
[396557843,1765049454924,-151.0,0.00016712,2]
[396557844,1765049454933,-521.98,0.00016712,2]
[396557845,1765049454942,-500.0,0.00016712,2]
[396557846,1765049454951,-500.0,0.00016712,2]
[396557847,1765049454961,-151.0,0.00016712,2]
[396557848,1765049454971,-151.0,0.00016712,2]
[396557849,1765049454980,-2191.96,0.00016712,2]
[396557850,1765049454990,-151.0,0.00016712,2]
[396557851,1765049454999,-500.0,0.00016712,2]
[396557852,1765049455010,-151.0,0.00016712,2]
[396557853,1765049455029,-1219.57,0.00016712,2]
[396557854,1765049455040,-294.418432,0.00016712,2]
[396557855,1765049455050,-151.0,0.00016712,2]
[396557856,1765049455059,-801.41,0.00016712,2]
[396557857,1765049455069,-500.0,0.00016712,2]
[396557858,1765049455078,-151.0,0.00016712,2]
[396557859,1765049455088,-500.0,0.00016712,2]
[396557860,1765049455098,-500.0,0.00016712,2]
[396557861,1765049455107,-151.0,0.00016712,2]
[396557862,1765049455117,-500.0,0.00016712,2]
[396557863,1765049455127,-151.0,0.00016712,2]
[396557864,1765049455137,-500.0,0.00016712,2]
[396557865,1765049455147,-500.0,0.00016712,2]
[396557866,1765049455156,-1201.7,0.00016712,2]
[396557867,1765049455167,-2655.39,0.00016712,2]
[396557868,1765049455177,-2094.8,0.00016712,2]
[396557869,1765049455186,-151.0,0.00016712,2]
[396557870,1765049455196,-151.0,0.00016712,2]
[396557871,1765049455206,-540.07351419,0.00016712,2]
[396557872,1765049455215,-500.0,0.00016712,2]
[396557873,1765049455226,-500.0,0.00016712,2]
[396557874,1765049455235,-500.0,0.00016712,2]
[396557875,1765049455245,-151.0,0.00016712,2]
[396557876,1765049455255,-500.0,0.00016712,2]
[396557877,1765049455268,-500.0,0.00016712,2]
[396557878,1765049455277,-151.0,0.00016712,2]
[396557879,1765049455286,-637.51,0.00016712,2]
[396557880,1765049455295,-2407.23,0.00016712,2]
[396557881,1765049455306,-500.0,0.00016712,2]
[396557882,1765049455316,-732.53,0.00016712,2]
[396557883,1765049455325,-500.0,0.00016712,2]
[396557884,1765049455335,-1009.51,0.00016712,2]
[396557885,1765049455346,-500.0,0.00016712,2]
[396557886,1765049455356,-1584.35,0.00016712,2]
[396557887,1765049455366,-151.0,0.00016712,2]
[396557888,1765049455375,-500.0,0.00016712,2]
[396557889,1765049455384,-486.61649537,0.00016712,2]
[396557890,1765049455394,-500.0,0.00016712,2]
[396557891,1765049455403,-500.0,0.00016712,2]
[396557892,1765049455413,-2216.29,0.00016712,2]
[396557893,1765049455422,-500.0,0.00016712,2]
[396557894,1765049455431,-525.16,0.00016712,2]
[396557895,1765049455441,-500.0,0.00016712,2]
[396557896,1765049455451,-522.18,0.00016712,2]
[396557897,1765049455460,-500.0,0.00016712,2]
[396557898,1765049455470,-500.0,0.00016712,2]
[396557899,1765049455479,-2581.64,0.00016712,2]
[396557900,1765049455488,-533.97937737,0.00016712,2]
[396557901,1765049455498,-500.0,0.00016712,2]
[396557902,1765049455507,-500.0,0.00016712,2]
[396557903,1765049455516,-500.0,0.00016712,2]
[396557904,1765049455526,-2393.78,0.00016712,2]
[396557905,1765049455534,-513.11,0.00016712,2]
[396557906,1765049455543,-749.49,0.00016712,2]
[396557907,1765049455553,-7767.63,0.00016712,2]
[396557908,1765049455562,-500.0,0.00016712,2]
[396557909,1765049455575,-615.05,0.00016712,2]
[396557910,1765049455584,-596.86,0.00016712,2]
[396557911,1765049455593,-500.0,0.00016712,2]
[396557912,1765049455603,-2384.07,0.00016712,2]
[396557913,1765049455612,-3000.49,0.00016712,2]
[396557914,1765049455622,-151.0,0.00016712,2]
[396557915,1765049455632,-500.0,0.00016712,2]
[396557916,1765049455641,-2557.77,0.00016712,2]
[396557917,1765049455651,-1744.83,0.00016712,2]
[396557918,1765049455660,-500.0,0.00016712,2]
[396557919,1765049455670,-500.0,0.00016712,2]
[396557920,1765049455680,-500.0,0.00016712,2]
[396557921,1765049455689,-500.0,0.00016712,2]
[396557922,1765049455699,-500.0,0.00016712,2]
[396557923,1765049455708,-500.0,0.00016712,2]
[396557924,1765049455718,-500.0,0.00016712,2]
[396557925,1765049455727,-151.0,0.00016712,2]
[396557926,1765049455737,-2635.05,0.00016712,2]
[396557927,1765049455747,-500.0,0.00016712,2]
[396557928,1765049455757,-258.272032,0.00016712,2]
[396557929,1765049455766,-1820.45,0.00016712,2]
[396557930,1765049455776,-571.55,0.00016712,2]
[396557931,1765049455786,-736.25,0.00016712,2]
[396557932,1765049455795,-151.0,0.00016712,2]
[396557933,1765049455806,-735.46,0.00016712,2]
[396557934,1765049455815,-300.0,0.00016712,2]
[396557935,1765049455825,-151.0,0.00016712,2]
[396557936,1765049455834,-151.0,0.00016712,2]
[396557937,1765049455844,-500.0,0.00016712,2]
[396557938,1765049455853,-2098.07,0.00016712,2]
[396557939,1765049455863,-2473.27,0.00016712,2]
[396557940,1765049455872,-500.0,0.00016712,2]
[396557941,1765049455882,-776.24,0.00016712,2]
[396557942,1765049455892,-1853.71,0.00016712,2]
[396557943,1765049455901,-151.0,0.00016712,2]
[396557944,1765049455911,-237.989205,0.00016712,2]
[396557945,1765049455920,-500.0,0.00016712,2]
[396557946,1765049455930,-151.0,0.00016712,2]
[396557947,1765049455939,-500.0,0.00016712,2]
[396557948,1765049455949,-2588.89,0.00016712,2]
[396557949,1765049455962,-151.0,0.00016712,2]
[396557950,1765049455972,-151.0,0.00016712,2]
[396557951,1765049455981,-151.0,0.00016712,2]
[396557952,1765049455991,-151.0,0.00016712,2]
[396557953,1765049456000,-500.0,0.00016712,2]
[396557954,1765049456010,-151.0,0.00016712,2]
[396557955,1765049456019,-151.0,0.00016712,2]
[396557956,1765049456028,-500.0,0.00016712,2]
[396557957,1765049456038,-500.0,0.00016712,2]
[396557958,1765049456047,-204.41137741,0.00016712,2]
[396557959,1765049456057,-2342.75,0.00016712,2]
[396557960,1765049456067,-649.71,0.00016712,2]
[396557961,1765049456076,-500.0,0.00016712,2]
[396557962,1765049456085,-500.0,0.00016712,2]
[396557963,1765049456095,-500.0,0.00016712,2]
[396557964,1765049456105,-594.08,0.00016712,2]
[396557965,1765049456114,-165.90120271,0.00016712,2]
[396557966,1765049456124,-676.36,0.00016712,2]
[396557967,1765049456133,-538.28909378,0.00016712,2]
[396557968,1765049456153,-1520.93090622,0.00016712,2]
[396557969,1765049456163,-617.02,0.00016712,2]
[396557970,1765049456173,-1285.78,0.00016712,2]
[396557971,1765049456183,-2236.86,0.00016712,2]
[396557972,1765049456192,-500.0,0.00016712,2]
[396557973,1765049456202,-500.0,0.00016712,2]
[396557974,1765049456212,-500.0,0.00016712,2]
[396557975,1765049456221,-2181.85,0.00016712,2]
[396557976,1765049456231,-2575.03,0.00016712,2]
[396557977,1765049456240,-500.0,0.00016712,2]
[396557978,1765049456250,-500.0,0.00016712,2]
[396557979,1765049456263,-1904.73,0.00016712,2]
[396557980,1765049456272,-586.42657707,0.00016712,2]
[396557981,1765049456282,-625.64,0.00016712,2]
[396557982,1765049456291,-500.0,0.00016712,2]
[396557983,1765049456301,-2159.24,0.00016712,2]
[396557984,1765049456311,-500.0,0.00016712,2]
[396557985,1765049456320,-500.0,0.00016712,2]
[396557986,1765049456330,-500.0,0.00016712,2]
[396557987,1765049456342,-500.0,0.00016712,2]
[396557988,1765049456355,-500.0,0.00016712,2]
[396557989,1765049456364,-500.0,0.00016712,2]
[396557990,1765049456374,-1932.85,0.00016712,2]
[396557991,1765049456384,-95.69903552,0.00016712,2]
[396557992,1765049456397,-404.30096448,0.00016712,2]
[396557993,1765049456407,-2103.91,0.00016712,2]
[396557994,1765049456416,-500.0,0.00016712,2]
[396557995,1765049456425,-500.0,0.00016712,2]
[396557996,1765049456435,-152.811684,0.00016712,2]
[396557997,1765049456446,-500.0,0.00016712,2]
[396557998,1765049456456,-2301.63,0.00016712,2]
[396557999,1765049456465,-1303.96,0.00016712,2]
[396558000,1765049456474,-151.0,0.00016712,2]
[396558001,1765049456483,-517.52,0.00016712,2]
[396558002,1765049456493,-1177.54,0.00016712,2]
[396558003,1765049456502,-151.0,0.00016712,2]
[396558004,1765049456511,-500.0,0.00016712,2]
[396558005,1765049456520,-503.89923795,0.00016712,2]
[396558006,1765049456529,-500.0,0.00016712,2]
[396558007,1765049456539,-2180.34,0.00016712,2]
[396558008,1765049456548,-500.0,0.00016712,2]
[396558009,1765049456558,-500.0,0.00016712,2]
[396558010,1765049456567,-1718.96,0.00016712,2]
[396558011,1765049456578,-151.0,0.00016712,2]
[396558012,1765049456588,-1228.79,0.00016712,2]
[396558013,1765049456598,-2050.98,0.00016712,2]
[396558014,1765049456607,-1934.35,0.00016712,2]
[396558015,1765049456617,-500.0,0.00016712,2]
[396558016,1765049456627,-500.0,0.00016712,2]
[396558017,1765049456636,-3296.1,0.00016712,2]
[396558018,1765049456645,-343.582987,0.00016712,2]
[396558019,1765049456654,-500.0,0.00016712,2]
[396558020,1765049456664,-500.0,0.00016712,2]
[396558021,1765049456673,-343.582987,0.00016712,2]
[396558022,1765049456683,-500.0,0.00016712,2]
[396558023,1765049456693,-500.0,0.00016712,2]
[396558024,1765049456702,-1591.93169781,0.00016712,2]
[396558025,1765049457024,-150.0,0.00016183,2]
[396558026,1765049457034,-150.0,0.0001632,2]
[396558027,1765049457044,-200.0,0.00016457,2]